bitfinex-derivatives/quotes_BTCF0:USTF0_20260113
["timestamp","ask_amount","ask_price","bid_price","bid_amount"]
[1768318565878,0.09696,92911.0,92886.0,0.0602551]
[1768318566185,0.01817692,92900.0,92868.0,0.010777]
[1768318566392,0.09696,92899.0,92874.0,0.06346611]
[1768318566590,0.01817692,92916.0,92880.0,0.06346611]
[1768318566784,0.09696,92915.0,92888.0,0.06346611]
[1768318567090,0.02235918,92925.0,92892.0,0.010774]
[1768318567291,0.02235918,92925.0,92880.0,0.07923201]
[1768318567292,0.09696,92924.0,92894.0,0.010774]
[1768318567475,0.02235918,92923.0,92893.0,0.06346611]
[1768318567678,0.010771,92920.0,92893.0,0.06346611]
[1768318567893,0.02235918,92923.0,92893.0,0.06346611]
[1768318568082,0.01077,92931.0,92897.0,0.07424011]
[1768318568386,0.02273371,92933.0,92897.0,0.06346611]
[1768318568590,0.09696,92932.0,92907.0,0.010773]
[1768318568887,0.09696,92932.0,92897.0,0.06346611]
[1768318569089,0.09696,92932.0,92906.0,0.06346611]
[1768318569784,0.02099318,92931.0,92902.0,0.010773]
[1768318569987,0.09696,92932.0,92908.0,0.010772]
[1768318570694,0.09696,92932.0,92905.0,0.06346611]
[1768318570882,0.01077,92931.0,92905.0,0.06346611]
[1768318571089,0.09696,92932.0,92905.0,0.07423911]
[1768318571297,0.09696,92932.0,92907.0,0.010773]
[1768318571488,0.09696,92932.0,92905.0,0.06346611]
[1768318572081,0.09696,92932.0,92907.0,0.010773]
[1768318572290,0.01077,92931.0,92905.0,0.16042611]
[1768318572589,0.01077,92931.0,92905.0,0.09696]
[1768318572791,0.10773,92932.0,92905.0,0.09696]
[1768318572991,0.09696,92932.0,92906.0,0.010773]
[1768318573587,0.09696,92932.0,92909.0,0.010772]
[1768318573789,0.09696,92932.0,92920.0,0.010771]
[1768318573995,0.09696,92940.0,92914.0,0.06346611]
[1768318574194,0.09696,92941.0,92923.0,0.06346611]
[1768318574396,0.09696,92946.0,92929.0,0.01077]
[1768318574687,0.00537906,92953.0,92919.0,0.09696]
[1768318574688,0.10233906,92953.0,92934.0,0.01077]
[1768318574899,0.10233906,92953.0,92931.0,0.06346611]
[1768318575195,0.0162652,92949.0,92898.0,0.06346611]
[1768318575489,0.21259377,92950.0,92798.0,0.38648694]
[1768318575490,0.0162652,92943.0,92910.0,0.06346611]
[1768318575798,0.0162652,92941.0,92903.0,0.06446618]
[1768318576097,0.01462041,92939.0,92903.0,0.06446618]
[1768318576290,0.01462041,92937.0,92906.0,0.06446618]
[1768318576478,0.00537906,92953.0,92900.0,0.09696]
[1768318576479,0.00537906,92953.0,92911.0,0.06446618]
[1768318576687,0.09696,92952.0,92917.0,0.06446618]
[1768318576987,0.01487953,92951.0,92917.0,0.06446618]
[1768318578087,0.09696,92952.0,92929.0,0.01077]
[1768318578290,0.09696,92952.0,92931.0,0.07523618]
[1768318578485,0.09696,92952.0,92931.0,0.06446618]
[1768318579195,0.09696,92952.0,92932.0,0.06446618]
[1768318580195,0.00537906,92953.0,92932.0,0.06446618]
[1768318581686,0.00537906,92953.0,92929.0,0.01077]
[1768318581687,0.00537906,92953.0,92934.0,0.06446618]
[1768318581993,0.00537906,92953.0,92949.0,0.010768]
[1768318582194,0.00537906,92953.0,92946.0,0.22391216]
[1768318582392,0.00537906,92953.0,92947.0,0.12699216]
[1768318582600,0.00537906,92953.0,92948.0,0.12699216]
[1768318582801,0.00537906,92953.0,92949.0,0.06252598]
[1768318583196,0.00537906,92953.0,92946.0,0.09692]
[1768318583694,0.53792051,92977.0,92950.0,0.010768]
[1768318583894,0.09692,92981.0,92950.0,0.06252598]
[1768318584308,1.59154963,93000.0,92955.0,0.010767]
[1768318584497,0.65449805,93000.0,92956.0,1.88692]
[1768318584694,0.11208211,93000.0,92958.0,0.06446618]
[1768318584897,0.06680471,93037.0,92994.0,0.0057256]
[1768318585102,0.010757,93043.0,93002.0,0.010762]
[1768318585398,0.00236446,93045.0,93002.0,0.010762]
[1768318585399,0.00236446,93045.0,93003.0,1.16257976]
[1768318585796,0.06000856,93044.0,93003.0,0.22969976]
[1768318586099,0.00236446,93045.0,92995.0,0.11635605]
[1768318586100,0.06680471,93030.0,92995.0,0.11635605]
[1768318586293,0.06000856,93028.0,92996.0,0.09692]
[1768318586800,0.06000856,93026.0,92997.0,0.09692]
[1768318587000,0.06000856,93026.0,92997.0,0.204433]
[1768318587198,0.05,93025.0,92997.0,0.12311099]
[1768318587400,0.05,93025.0,93007.0,0.010761]
[1768318587697,1e-08,93024.0,93008.0,0.09692]
[1768318587902,0.06000856,93036.0,93009.0,0.09692]
[1768318588199,0.06000856,93036.0,93014.0,0.01076]
[1768318588408,0.06000856,93036.0,93010.0,0.010761]
[1768318588605,0.06000856,93035.0,93010.0,0.10751416]
[1768318588802,0.06237302,93045.0,93021.0,0.010759]
[1768318589298,0.06237302,93045.0,93010.0,0.0598849]
[1768318589299,0.09688,93044.0,93017.0,0.01076]
[1768318589497,0.09688,93044.0,93011.0,0.010761]
[1768318589498,0.06000856,93042.0,93011.0,0.010761]
[1768318589697,0.00236446,93045.0,93020.0,0.01076]
[1768318590208,0.06000856,93042.0,93010.0,0.0598849]
[1768318590502,0.00236446,93045.0,93021.0,0.10749162]
[1768318590703,0.00236446,93045.0,93021.0,0.00368638]
[1768318590898,0.06237302,93045.0,93013.0,0.01076]
[1768318591104,0.06237302,93045.0,93011.0,0.01063811]
[1768318591307,0.06237302,93045.0,93012.0,0.10749682]
[1768318591505,0.06237302,93045.0,93020.0,0.010759]
[1768318591914,0.53776,93042.0,93015.0,0.01076]
[1768318592107,0.06000856,93041.0,93015.0,0.01076]
[1768318592308,0.06000856,93041.0,93016.0,0.10749394]
[1768318592910,0.06000856,93041.0,93017.0,0.01076]
[1768318593106,0.06000856,93041.0,93016.0,0.10749394]
[1768318593308,0.06000856,93035.0,93011.0,0.08539065]
[1768318593513,0.06000856,93035.0,93008.0,0.15548572]
[1768318593810,0.09688,93043.0,93025.0,0.010759]
[1768318594010,0.09688,93043.0,93013.0,0.00639764]
[1768318594211,0.09684,93042.0,93022.0,0.010759]
[1768318594510,0.06237302,93045.0,93022.0,0.010759]
[1768318594810,0.53776,93041.0,93025.0,0.010759]
[1768318595004,0.53776,93041.0,93023.0,0.10748989]
[1768318595211,0.00236446,93045.0,93027.0,0.010759]
[1768318595712,0.00236446,93045.0,93024.0,0.02328252]
[1768318595915,0.14442935,93040.0,93028.0,0.10748527]
[1768318596212,0.09268587,93039.0,93023.0,0.107488]
[1768318596915,0.00236446,93045.0,93024.0,0.10749105]
[1768318597103,0.00236446,93045.0,93025.0,0.00509622]
[1768318597304,4.6e-07,93045.0,93041.0,0.010757]
[1768318597504,0.09268587,93061.0,93041.0,0.010757]
[1768318597708,0.09268587,93070.0,93042.0,0.10749105]
[1768318597917,0.23711522,93070.0,93042.0,0.10749105]
[1768318598104,0.09268587,93070.0,93042.0,0.10749105]
[1768318598308,0.14442935,93060.0,93042.0,0.10749105]
[1768318598607,0.09268587,93070.0,93042.0,0.10749105]
[1768318599012,0.010754,93069.0,93042.0,0.10749105]
[1768318599204,0.09268587,93070.0,93042.0,0.10749105]
[1768318599707,0.01612613,93073.0,93035.0,0.107598]
[1768318599708,0.00537213,93073.0,93035.0,0.09684]
[1768318599911,0.00537213,93073.0,93047.0,0.010756]
[1768318600110,0.00537213,93073.0,93036.0,0.4]
[1768318600111,0.14442935,93070.0,93048.0,0.09684]
[1768318600312,0.14442935,93070.0,93049.0,0.010756]
[1768318600511,0.00537213,93073.0,93049.0,0.010756]
[1768318600512,0.00537213,93073.0,93049.0,0.11822799]
[1768318600808,0.00537213,93073.0,93049.0,0.11326799]
[1768318601009,0.00537213,93073.0,93049.0,0.10747199]
[1768318601615,0.00537213,93073.0,93051.0,0.010756]
[1768318601815,0.00537213,93073.0,93049.0,0.10747199]
[1768318601816,0.00037664,93093.0,93063.0,0.14442935]
[1768318602010,0.00536982,93113.0,93064.0,0.09684]
[1768318602011,0.09268587,93107.0,93064.0,0.09684]
[1768318602321,0.09268587,93107.0,93080.0,0.010753]
[1768318602618,0.09268587,93103.0,93081.0,0.09684]
[1768318602807,0.50888037,93102.0,93081.0,0.09684]
[1768318603004,0.50888037,93100.0,93081.0,0.09684]
[1768318603211,0.00536982,93113.0,93076.0,0.05831556]
[1768318603414,0.09268587,93134.0,93100.0,0.14442935]
[1768318603615,0.09268587,93134.0,93096.0,0.4254]
[1768318603818,0.09268587,93144.0,93101.0,0.12401813]
[1768318604013,0.09268587,93144.0,93114.0,0.010749]
[1768318604326,0.09268587,93150.0,93101.0,0.0865558]
[1768318604516,0.09268587,93146.0,93115.0,0.10739292]
[1768318604721,0.09268587,93146.0,93122.0,0.010748]
[1768318604917,0.09268587,93146.0,93123.0,0.0968]
[1768318605116,0.00536751,93153.0,93102.0,0.5198]
[1768318605117,0.09268587,93139.0,93102.0,0.5198]
[1768318605324,0.00536751,93153.0,93124.0,0.11384371]
[1768318605507,0.00536751,93153.0,93124.0,0.22122568]
[1768318605704,0.00536751,93153.0,93120.0,0.14442935]
[1768318605906,0.00536751,93153.0,93125.0,0.2235629]
[1768318606110,0.09805338,93153.0,93126.0,0.0968]
[1768318606313,0.09805338,93153.0,93127.0,0.0968]
[1768318606509,0.00536751,93153.0,93127.0,0.0968]
[1768318606718,0.09805338,93153.0,93127.0,0.21400052]
[1768318606924,0.09805338,93153.0,93127.0,0.0968]
[1768318607113,0.00536751,93153.0,93130.0,0.14442935]
[1768318607411,0.00536751,93153.0,93120.0,0.14442935]
[1768318607412,0.09268587,93152.0,93120.0,0.14442935]
[1768318607614,0.09268587,93152.0,93121.0,0.107548]
[1768318607925,0.09268587,93152.0,93129.0,0.10736525]
[1768318608116,0.09268587,93152.0,93121.0,0.21570499]
[1768318608322,0.00536751,93153.0,93122.0,0.20412986]
[1768318608323,0.09268587,93144.0,93122.0,0.20412986]
[1768318608523,0.00536751,93153.0,93122.0,0.21211581]
[1768318608826,0.00536751,93153.0,93128.0,0.010747]
[1768318609023,0.00536751,93153.0,93124.0,0.010748]
[1768318609325,0.09268587,93149.0,93125.0,0.21211581]
[1768318609526,0.09268587,93149.0,93126.0,0.09676]
[1768318609822,0.09268587,93145.0,93118.0,0.20989312]
[1768318610026,0.09268587,93145.0,93118.0,0.107508]
[1768318610324,0.09268587,93145.0,93119.0,0.11313312]
[1768318610527,0.09268587,93145.0,93121.0,0.010748]
[1768318610913,8.7e-07,93145.0,93119.0,0.11313312]
[1768318611118,0.00536751,93153.0,93130.0,0.14442935]
[1768318611318,0.00536751,93153.0,93135.0,0.010746]
[1768318611524,0.00536751,93153.0,93138.0,0.010746]
[1768318612026,0.00536751,93153.0,93131.0,0.09676]
[1768318612421,0.00536751,93153.0,93137.0,0.10736064]
[1768318612620,0.00536751,93153.0,93132.0,0.12440432]
[1768318612929,0.00536751,93153.0,93133.0,0.10735949]
[1768318613228,0.00536751,93153.0,93134.0,0.08059677]
[1768318613434,0.00536751,93153.0,93135.0,0.010746]
[1768318613731,0.00536751,93153.0,93136.0,0.11917116]
[1768318614226,0.00536751,93153.0,93136.0,0.10736064]
[1768318614443,0.09268587,93151.0,93132.0,0.09672]
[1768318614641,0.09268587,93152.0,93132.0,0.09672]
[1768318614841,0.09268587,93148.0,93131.0,0.09672]
[1768318615033,0.09268587,93148.0,93128.0,0.09672]
[1768318615233,0.09268587,93148.0,93132.0,0.010747]
[1768318615529,0.00536751,93153.0,93129.0,0.1154972]
[1768318615734,0.2714,93147.0,93129.0,0.1154972]
[1768318615930,0.09805338,93153.0,93129.0,0.010747]
[1768318616237,0.09805338,93153.0,93132.0,0.010747]
[1768318616431,0.32752,93184.0,93130.0,0.10736525]
[1768318616432,0.05,93190.0,93143.0,0.15517435]
[1768318616630,0.04497512,93190.0,93160.0,0.05206064]
[1768318616942,0.09268587,93189.0,93168.0,0.010742]
[1768318617149,0.09268587,93187.0,93161.0,0.11817617]
[1768318617440,0.09684379,93184.0,93156.0,0.09672]
[1768318617636,0.09268587,93181.0,93161.0,0.010743]
[1768318617838,0.09268587,93181.0,93164.0,0.010743]
[1768318618342,0.28624966,93185.0,93158.0,0.010744]
[1768318618544,0.28624966,93185.0,93129.0,0.19149812]
[1768318618545,0.18952966,93170.0,93133.0,0.05489192]
[1768318618727,0.09672,93185.0,93096.0,0.0128923]
[1768318618728,0.09672,93172.0,93115.0,0.010749]
[1768318618932,0.064447,93183.0,93130.0,0.14442935]
[1768318618933,0.09268587,93148.0,93130.0,0.14442935]
[1768318619129,0.21497758,93156.0,93130.0,0.09672]
[1768318619338,9.9e-07,93155.0,93130.0,0.24114935]
[1768318619538,9.9e-07,93155.0,93132.0,0.1889599]
[1768318619744,9.9e-07,93155.0,93152.0,0.010744]
[1768318620040,0.09684379,93179.0,93161.0,0.010743]
[1768318620239,0.09672,93185.0,93158.0,0.09672]
[1768318620442,0.09684379,93189.0,93169.0,0.010742]
[1768318620640,0.04497512,93190.0,93162.0,0.010743]
[1768318620847,0.04497512,93190.0,93165.0,0.010743]
[1768318621042,0.04497512,93190.0,93162.0,0.09276377]
[1768318621242,0.04497512,93190.0,93165.0,0.010743]
[1768318621641,0.04497512,93190.0,93171.0,0.010742]
[1768318621944,0.04497512,93190.0,93169.0,0.09672]
[1768318622144,0.09672,93216.0,93178.0,0.09276377]
[1768318622349,0.09672,93216.0,93170.0,0.14442935]
[1768318622350,0.09268587,93199.0,93170.0,0.11195183]
[1768318622649,0.09268587,93187.0,93149.0,0.09276377]
[1768318622944,0.01610106,93213.0,93157.0,0.09276377]
[1768318622945,0.09268587,93192.0,93157.0,0.09276377]
[1768318623141,0.00536406,93213.0,93152.0,0.10731398]
[1768318623142,0.09268587,93202.0,93170.0,0.14442935]
[1768318623348,0.18940587,93202.0,93172.0,0.09276377]
[1768318623551,0.09268587,93202.0,93172.0,0.09276377]
[1768318623747,0.09268587,93211.0,93184.0,0.010741]
[1768318623937,3.4e-07,93200.0,93184.0,0.09672]
[1768318624141,3.4e-07,93200.0,93185.0,0.21208653]
[1768318624435,3.4e-07,93200.0,93184.0,0.09672]
[1768318624639,3.4e-07,93200.0,93186.0,0.10731225]
[1768318624847,3.4e-07,93200.0,93187.0,0.01074]
[1768318625052,3.4e-07,93200.0,93189.0,0.01074]
[1768318625248,3.4e-07,93200.0,93190.0,0.01074]
[1768318625643,3.4e-07,93200.0,93185.0,0.12437256]
[1768318625948,3.4e-07,93200.0,93186.0,0.10730189]
[1768318626150,0.09564624,93199.0,93166.0,0.09668]
[1768318626341,0.09564624,93199.0,93163.0,0.09146464]
[1768318626549,0.09272229,93169.0,93127.0,0.01283634]
[1768318626746,0.09564624,93146.0,93121.0,0.09668]
[1768318626943,0.09564624,93145.0,93122.0,0.10731801]
[1768318627146,0.09564624,93155.0,93123.0,0.09146464]
[1768318627341,0.05882256,93183.0,93123.0,0.09146464]
[1768318627342,0.09272229,93185.0,93129.0,0.18738572]
[1768318627543,0.09272229,93193.0,93148.0,0.010745]
[1768318627738,0.09272229,93193.0,93138.0,0.09146464]
[1768318627739,0.09564624,93184.0,93149.0,0.09668]
[1768318627947,0.09564624,93184.0,93150.0,0.09668]
[1768318628338,0.09564624,93179.0,93134.0,0.09146464]
[1768318628542,0.18836853,93179.0,93147.0,0.010745]
[1768318628752,0.09564624,93176.0,93148.0,0.09668]
[1768318628953,0.09564624,93173.0,93150.0,0.010744]
[1768318629153,0.09668,93183.0,93151.0,0.09668]
[1768318629154,0.09564624,93183.0,93151.0,0.09668]
[1768318629353,0.14442935,93180.0,93152.0,0.09668]
[1768318629543,0.09564624,93169.0,93144.0,0.010745]
[1768318629743,0.09564624,93168.0,93145.0,0.09668]
[1768318629944,0.09668,93181.0,93147.0,0.09146464]
[1768318630155,0.09668,93186.0,93159.0,0.010743]
[1768318630456,0.09668,93186.0,93151.0,0.010744]
[1768318630457,0.09272229,93179.0,93151.0,0.010744]
[1768318630643,0.09272229,93179.0,93130.0,0.24035043]
[1768318630644,0.14442935,93170.0,93146.0,0.36998894]
[1768318630846,0.09668,93170.0,93137.0,0.20972404]
[1768318631052,0.09668,93182.0,93153.0,0.09146464]
[1768318631354,0.09668,93189.0,93165.0,0.010743]
[1768318631543,0.01074,93187.0,93159.0,0.010743]
[1768318631855,0.09668,93189.0,93170.0,0.010742]
[1768318632045,0.09668,93189.0,93171.0,0.010742]
[1768318632351,0.07913265,93182.0,93144.0,0.09146464]
[1768318632554,0.09668,93189.0,93144.0,0.09146464]
[1768318632555,0.07913265,93177.0,93145.0,0.09668]
[1768318632742,0.01661384,93187.0,93164.0,0.010743]
[1768318632948,0.010741,93179.0,93153.0,0.09146464]
[1768318633153,0.010742,93176.0,93143.0,0.09146464]
[1768318633352,0.14442935,93180.0,93160.0,0.010743]
[1768318633558,0.14442935,93190.0,93152.0,0.18814464]
[1768318633759,0.09668,93189.0,93160.0,0.09146464]
[1768318634050,0.09668,93189.0,93173.0,0.010742]
[1768318634259,0.09668,93189.0,93162.0,0.09146464]
[1768318634455,0.14442935,93180.0,93159.0,0.09146464]
[1768318634649,0.14442935,93180.0,93166.0,0.010743]
[1768318634958,0.01074,93189.0,93160.0,0.09668]
[1768318635159,0.01074,93189.0,93163.0,0.010743]
[1768318635351,0.14442935,93190.0,93161.0,0.09668]
[1768318635547,0.09668,93195.0,93161.0,0.18814464]
[1768318635754,0.09668,93195.0,93162.0,0.09718773]
[1768318635953,0.01074,93186.0,93163.0,0.010743]
[1768318636150,0.14442935,93180.0,93152.0,0.09718773]
[1768318636452,0.010743,93162.0,93142.0,0.09718773]
[1768318636647,0.010742,93172.0,93141.0,0.10732435]
[1768318636852,0.010742,93172.0,93141.0,0.09718773]
[1768318637155,0.010742,93170.0,93141.0,0.09718773]
[1768318637454,0.09668,93173.0,93147.0,0.010745]
[1768318637455,0.010742,93172.0,93147.0,0.010745]
[1768318638050,0.14442935,93170.0,93143.0,0.09718773]
[1768318638252,0.010743,93165.0,93143.0,0.10793273]
[1768318638463,0.14442935,93170.0,93143.0,0.09718773]
[1768318638648,0.01074,93193.0,93138.0,0.09668]
[1768318638649,0.010739,93195.0,93153.0,0.010744]
[1768318638964,0.09668,93194.0,93167.0,0.010742]
[1768318639167,0.09668,93194.0,93166.0,0.09718773]
[1768318639168,0.14442935,93190.0,93166.0,0.09718773]
[1768318639350,0.010741,93185.0,93157.0,0.10793173]
[1768318639663,0.00363478,93184.0,93154.0,0.09718773]
[1768318639855,0.14442935,93180.0,93144.0,0.09718773]
[1768318640059,0.09813391,93179.0,93144.0,0.09718773]
[1768318640367,0.010743,93160.0,93146.0,0.09718773]
[1768318640554,0.010741,93178.0,93133.0,0.09350589]
[1768318640555,0.14442935,93170.0,93136.0,0.09718773]
[1768318640854,0.14442935,93170.0,93140.0,0.010746]
[1768318641059,0.010742,93169.0,93140.0,0.010746]
[1768318641261,0.010742,93169.0,93140.0,0.10793373]
[1768318641456,0.00363478,93175.0,93059.0,0.19218679]
[1768318641457,0.01253585,93166.0,93131.0,0.09718773]
[1768318641673,0.09668,93165.0,93139.0,0.010746]
[1768318641852,0.1569652,93160.0,93125.0,0.220037]
[1768318642163,0.010745,93148.0,93124.0,0.010747]
[1768318642351,0.09668,93147.0,93111.0,0.09718773]
[1768318642559,0.14442935,93130.0,93101.0,0.09718773]
[1768318642749,0.010748,93122.0,93086.0,0.09668]
[1768318642952,0.14442935,93120.0,93087.0,0.09668]
[1768318643254,0.010745,93149.0,93087.0,0.09668]
[1768318643255,0.09668,93119.0,93093.0,0.010751]
[1768318643448,0.09668,93123.0,93088.0,0.20087921]
[1768318643668,9.612e-05,93122.0,93104.0,0.01075]
[1768318643862,9.612e-05,93122.0,93106.0,0.01075]
[1768318644061,9.612e-05,93122.0,93090.0,0.09350589]
[1768318644258,9.612e-05,93122.0,93091.0,0.010751]
[1768318644453,9.612e-05,93122.0,93087.0,0.09668]
[1768318644454,0.010748,93121.0,93087.0,0.107432]
[1768318644659,9.612e-05,93122.0,93087.0,0.09668]
[1768318644660,0.010748,93119.0,93087.0,0.09668]
[1768318644861,0.010749,93116.0,93087.0,0.09668]
[1768318645178,0.010748,93120.0,93088.0,0.010752]
[1768318645358,0.01012494,93119.0,93087.0,0.09668]
[1768318645662,0.01012494,93119.0,93088.0,0.010752]
[1768318645867,0.01012494,93119.0,93087.0,0.09668]
[1768318645868,0.01012494,93115.0,93087.0,0.09668]
[1768318646064,0.02087394,93115.0,93082.0,0.09718773]
[1768318646367,9.612e-05,93122.0,93091.0,0.09718773]
[1768318646669,9.612e-05,93122.0,93088.0,0.09350589]
[1768318646670,0.010749,93110.0,93079.0,0.19386773]
[1768318647067,0.14442935,93100.0,93068.0,0.09718773]
[1768318647261,0.09668,93099.0,93068.0,0.09718773]
[1768318647460,0.09668,93099.0,93078.0,0.010753]
[1768318647769,0.09668,93098.0,93084.0,0.010752]
[1768318647965,0.09668,93097.0,93081.0,0.010752]
[1768318648367,0.09668,93097.0,93075.0,0.09955143]
[1768318648570,0.00801317,93109.0,93088.0,0.010752]
[1768318648571,9.697e-05,93109.0,93088.0,0.010752]
[1768318648765,0.09672,93108.0,93075.0,0.09955143]
[1768318648968,0.09672,93108.0,93079.0,0.10794073]
[1768318649160,0.107469,93108.0,93079.0,0.09718773]
[1768318649466,0.15336196,93100.0,93075.0,0.0023637]
[1768318649666,0.14442935,93090.0,93075.0,0.0023637]
[1768318649856,0.09679748,93089.0,93059.0,0.09718773]
[1768318650370,0.09672,93088.0,93062.0,0.10794273]
[1768318650557,0.010753,93075.0,93052.0,0.09718773]
[1768318650757,0.15069616,93071.0,93040.0,0.09718773]
[1768318650958,0.5894,93089.0,93050.0,0.09718773]
[1768318651169,1.59672,93088.0,93055.0,0.010755]
[1768318651366,1.5,93088.0,93051.0,0.09718773]
[1768318651569,0.09672,93087.0,93052.0,0.09718773]
[1768318651771,0.15069616,93080.0,93047.0,0.09718773]
[1768318651964,0.14442935,93070.0,93045.0,0.00236446]
[1768318652164,0.14442935,93060.0,93036.0,0.09718773]
[1768318652364,0.107475,93059.0,93027.0,0.010759]
[1768318652562,0.09672,93059.0,93024.0,0.09718773]
[1768318652759,0.0177728,93069.0,93024.0,0.17709386]
[1768318653058,0.0176557,93065.0,93019.0,0.09672]
[1768318653268,0.0176557,93064.0,93020.0,0.14442935]
[1768318653561,0.0001171,93069.0,93020.0,0.14442935]
[1768318653562,0.1482,93068.0,93025.0,0.09350589]
[1768318653765,0.0001171,93069.0,93046.0,0.010756]
[1768318653963,0.09672,93068.0,93041.0,0.010757]
[1768318654164,0.0001171,93069.0,93030.0,0.23793524]
[1768318654165,0.0001171,93069.0,93033.0,0.010758]
[1768318654363,0.09672,93068.0,93046.0,0.010757]
[1768318654670,0.0001171,93069.0,93034.0,0.09672]
[1768318654671,0.0001171,93069.0,93044.0,0.09718773]
[1768318654872,0.0001171,93069.0,93048.0,0.09866628]
[1768318655068,0.0001171,93069.0,93036.0,0.09866628]
[1768318655672,0.0001171,93069.0,93043.0,0.09866628]
[1768318656365,0.0001171,93069.0,93049.0,0.010756]
[1768318656565,0.0001171,93069.0,93052.0,0.010756]
[1768318656867,0.0001171,93069.0,93048.0,0.010756]
[1768318657061,0.0001171,93069.0,93051.0,0.010756]
[1768318657375,0.0001171,93069.0,93060.0,0.010755]
[1768318657567,0.0001171,93069.0,93059.0,0.010755]
[1768318657866,1e-07,93069.0,93062.0,0.010755]
[1768318658066,1e-07,93069.0,93061.0,0.010755]
[1768318658259,1.5,93088.0,93071.0,0.010754]
[1768318658464,0.09676,93087.0,93070.0,0.010754]
[1768318658660,1.5,93088.0,93067.0,0.010754]
[1768318658876,0.09676,93087.0,93062.0,0.09866628]
[1768318659174,8.794e-05,93086.0,93062.0,0.09866628]
[1768318659375,8.794e-05,93086.0,93056.0,0.010755]
[1768318659574,8.794e-05,93086.0,93051.0,0.09866628]
[1768318659575,0.01926981,93084.0,93061.0,0.010755]
[1768318659771,0.09676,93087.0,93055.0,0.09866628]
[1768318659963,0.094485,93087.0,93062.0,0.010755]
[1768318660571,0.094485,93087.0,93048.0,0.010756]
[1768318660572,0.01926981,93081.0,93046.0,0.09676]
[1768318660768,0.01926981,93081.0,93052.0,0.010756]
[1768318660967,0.01926981,93081.0,93052.0,0.09866628]
[1768318661172,0.094485,93087.0,93052.0,0.09866628]
[1768318661369,0.01935303,93086.0,93054.0,0.09866628]
[1768318661574,0.09676,93085.0,93069.0,0.09866628]
[1768318661872,0.09676,93085.0,93067.0,0.010754]
[1768318662062,0.09676,93085.0,93061.0,0.010755]
[1768318662270,0.09676,93085.0,93066.0,0.010754]
[1768318662464,0.09676,93085.0,93059.0,0.09866628]
[1768318662676,0.09676,93085.0,93067.0,0.010754]
[1768318662871,0.09676,93085.0,93075.0,0.010753]
[1768318663079,0.09676,93085.0,93061.0,0.010755]
[1768318663080,0.09676,93085.0,93071.0,0.010754]
[1768318663274,0.09676,93085.0,93068.0,0.09866628]
[1768318663275,1.5,93097.0,93068.0,0.09866628]
[1768318663475,0.010747,93128.0,93069.0,0.09866628]
[1768318663476,0.09676,93096.0,93069.0,0.09866628]
[1768318663678,0.84712,93106.0,93081.0,0.010752]
[1768318663977,1.59676,93105.0,93081.0,0.010752]
[1768318664479,0.01075,93102.0,93077.0,0.010753]
[1768318664669,1.59676,93105.0,93077.0,0.09866628]
[1768318664871,1.5,93105.0,93085.0,0.09866628]
[1768318665073,0.09676,93104.0,93084.0,0.010752]
[1768318665278,0.09676,93103.0,93084.0,0.010752]
[1768318665475,0.09676,93102.0,93096.0,0.010751]
[1768318665674,1.5,93107.0,93100.0,0.01075]
[1768318665871,0.01899029,93121.0,93092.0,0.01234186]
[1768318666072,0.09676,93120.0,93093.0,0.09866628]
[1768318666274,0.01899029,93133.0,93101.0,0.09866628]
[1768318666480,0.08431214,93167.0,93098.0,0.09144108]
[1768318666782,0.01899029,93150.0,93113.0,0.09866628]
[1768318666978,0.847,93149.0,93120.0,0.010748]
[1768318667186,0.96362792,93149.0,93108.0,0.09144108]
[1768318667379,0.01986792,93148.0,93108.0,0.09144108]
[1768318667583,0.01986792,93148.0,93120.0,0.010748]
[1768318667888,0.1,93165.0,93084.0,0.053762]
[1768318667889,0.01986792,93158.0,93129.0,0.010747]
[1768318668180,0.94372,93157.0,93129.0,0.010747]
[1768318668380,1.5,93156.0,93124.0,0.010747]
[1768318668573,1.5,93156.0,93127.0,0.010747]
[1768318668770,1.5,93156.0,93115.0,0.09144108]
[1768318668970,0.010744,93153.0,93119.0,0.09866628]
[1768318669174,0.010745,93150.0,93119.0,0.09866628]
[1768318669389,0.02125781,93155.0,93119.0,0.09866628]
[1768318669684,0.010745,93149.0,93119.0,0.09866628]
[1768318669880,0.02125781,93155.0,93123.0,0.09866628]
[1768318670086,0.0921045,93137.0,93096.0,0.09144108]
[1768318670283,0.010748,93120.0,93088.0,0.09676]
[1768318670587,0.0921045,93125.0,93088.0,0.10913473]
[1768318670778,0.09676,93124.0,93107.0,0.010749]
[1768318670979,0.09676,93124.0,93089.0,0.09144108]
[1768318670980,0.010746,93141.0,93113.0,0.010749]
[1768318671185,0.94328,93140.0,93113.0,0.010749]
[1768318671381,0.010746,93139.0,93111.0,0.010749]
[1768318671778,0.94328,93140.0,93111.0,0.010749]
[1768318671779,0.010746,93136.0,93111.0,0.010749]
[1768318671973,0.010747,93130.0,93103.0,0.01075]
[1768318672178,0.0921045,93128.0,93097.0,0.09866628]
[1768318672380,0.010747,93125.0,93100.0,0.01075]
[1768318672578,0.09676,93124.0,93096.0,0.010751]
[1768318672789,0.09676,93124.0,93098.0,0.01075]
[1768318673083,0.09676,93124.0,93100.0,0.01075]
[1768318673290,0.09676,93124.0,93088.0,0.01237473]
[1768318673291,0.09676,93124.0,93112.0,0.010749]
[1768318673486,0.09672,93130.0,93115.0,0.010748]
[1768318673789,0.09672,93130.0,93100.0,0.09144108]
[1768318673978,0.09672,93130.0,93114.0,0.010749]
[1768318674175,0.09672,93130.0,93107.0,0.010749]
[1768318674482,0.09672,93130.0,93105.0,0.10941628]
[1768318674678,0.09672,93130.0,93103.0,0.01075]
[1768318674884,0.010748,93123.0,93094.0,0.09866628]
[1768318675088,0.0921045,93125.0,93095.0,0.010751]
[1768318675278,0.09672,93130.0,93106.0,0.01075]
[1768318675477,0.0921045,93135.0,93106.0,0.01075]
[1768318675785,0.0921045,93119.0,93072.0,0.010753]
[1768318675974,0.09672,93118.0,93076.0,0.09672]
[1768318676177,0.09672,93118.0,93084.0,0.010752]
[1768318676392,0.09672,93117.0,93094.0,0.010751]
[1768318676688,0.09672,93116.0,93107.0,0.010749]
[1768318676889,0.09672,93118.0,93110.0,0.010749]
[1768318677387,0.09672,93119.0,93110.0,0.010749]
[1768318677585,0.09672,93119.0,93096.0,0.010751]
[1768318677778,5e-07,93130.0,93125.0,0.010747]
[1768318677979,0.09672,93129.0,93121.0,0.010748]
[1768318678196,0.84656,93136.0,93113.0,0.010749]